Cogmind - Beta 9.6 @@@ ROGUE MODE // 2020.05.19 @ 18:55:15 Player: cl0y-b1cks Result: Destroyed by G-34 Mercenary with Small Laser Performance ------------- Evolutions (1) 500 Regions Visited (4) 800 Robots Destroyed (27) 135 Value Destroyed (1152) 1152 Prototype IDs (3) 60 Alien Tech Used (0) 0 Bonus (200) 200 TOTAL SCORE: 2847 Bonus ------- Entered Garrisons 200 Cogmind --------- Core Integrity 0/400 Matter 300/300 Energy 100/100 System Corruption 0% Temperature Cool (6) Movement Core (300) Ox5 Location -9/Garrison Parts ------- > --- POWER (1) -------- (None) > --- PROPULSION (2) --- (None) > --- UTILITY (4) ------ Large Storage Unit Seismic Analyzer Utility Shielding > --- WEAPON (2) ------- (None) > --- INVENTORY (10) --- Structural Scanner Improved Sensor Array Relay Coupler [Sentry] (22) Relay Coupler [Hunter] (13) Advanced Beam Cannon Peak State ------------ > --- POWER ------------ Heavy Ion Engine > --- PROPULSION ------- Light Treads Light Treads > --- UTILITY ---------- Large Storage Unit Improved Terrain Scanner Seismic Analyzer Utility Shielding > --- WEAPON ----------- Advanced Beam Cannon Shotgun > --- INVENTORY -------- Ion Engine Structural Scanner [Rating: 15] Favorites ----------- Power Heavy Ion Engine Engine Heavy Ion Engine Propulsion Light Treads Treads Light Treads Leg Aluminum Leg Utility Seismic Analyzer Device Improved Terrain Scanner Storage Large Storage Unit Processor Seismic Analyzer Protection Utility Shielding Weapon Shotgun Energy Gun Small Laser Energy Cannon Advanced Beam Cannon Ballistic Gun Shotgun Special Melee Weapon Datajack Build | -11 -10 -9 -9 -9 ------- Run | Scr Mat Mat Sto Gar Slots Evolved 2 | . . 2 . . Power . | . . . . . Propulsion . | . . . . . Utility 2 | . . 2 . . Weapon . | . . . . . Parts Attached 20 | 5 2 10 2 1 Power 3 | 1 . 1 1 . Engine 3 | 1 . 1 1 . Core . | . . . . . Reactor . | . . . . . Propulsion 5 | 2 . 2 . 1 Treads 2 | . . 2 . . Leg 3 | 2 . . . 1 Wheel . | . . . . . Hover . | . . . . . Flight . | . . . . . Utility 4 | . 2 2 . . Device 1 | . . 1 . . Storage 1 | . . 1 . . Processor 1 | . 1 . . . Hackware . | . . . . . Protection 1 | . 1 . . . Artifact . | . . . . . Weapon 8 | 2 . 5 1 . Energy Gun 1 | 1 . . . . Energy Cannon 1 | . . 1 . . Ballistic Gun 5 | 1 . 3 1 . Ballistic Cannon . | . . . . . Launcher . | . . . . . Special Weapon . | . . . . . Impact Weapon . | . . . . . Slashing Weapon . | . . . . . Piercing Weapon . | . . . . . Special Melee Weapon 1 | . . 1 . . Unidentified Prototypes 3 | . . 1 2 . Parts Lost 15 | . 1 7 . 7 Power 2 | . . 1 . 1 Propulsion 5 | . . 2 . 3 Utility 1 | . . . . 1 Weapon 7 | . 1 4 . 2 Highest Loss Streak 5 | . 1 5 . 4 Average Slot Usage (%) 87 | . 93 83 95 90 Engine 8 | . 14 5 6 11 Treads 10 | . . 8 22 14 Leg 9 | . 28 8 . 6 Device 7 | . . 10 11 3 Storage 9 | . . 11 11 11 Processor 11 | . 11 11 11 11 Protection 10 | . 10 11 11 11 Energy Gun 1 | . 12 . . . Energy Cannon 1 | . . 2 4 . Ballistic Gun 17 | . 14 15 17 22 Naked Turns . | . . . . . Heaviest Build 33 | 8 9 31 33 32 Greatest Support 40 | 20 20 40 40 40 Greatest Overweight (x) 7 | . . 7 . 6 Average Overweight (x) 1 | . . 1 . 2 Largest Inventory Capacity 10 | 4 4 10 10 10 Average Capacity 9 | 4 4 10 10 10 Most Carried 6 | . 1 4 4 6 Average Carried 2 | . . 2 2 4 Final Capacity 10 | 4 4 10 10 10 Final Carried 5 | . 1 2 4 5 Class Distribution -------------------- 100% | Mutant Dominant Class ---------------- Mutant | -10/Materials Mutant | -9/Materials Mutant | -9/Storage Mutant | -9/Garrison Resources | -11 -10 -9 -9 -9 ----------- Run | Scr Mat Mat Sto Gar Matter Collected 873 | 170 77 481 . 145 Remotely . | . . . . . Salvage Created 920 | . 77 574 . 269 Parts 65 | . 4 48 . 13 Haulers Intercepted 2 | . . 2 . . Recyclers Shooed 2 | . 1 1 . . Parts Field Recycled . | . . . . . Retrieved Matter . | . . . . . Parts Self-Destructed . | . . . . . Prevented . | . . . . . Kills | -11 -10 -9 -9 -9 ------- Run | Scr Mat Mat Sto Gar Combat Hostiles Destroyed 22 | . 2 14 . 6 Guns 22 | . 2 14 . 6 Classes Destroyed 6 | . 1 5 . . Worker 2 | . . 2 . . Builder 1 | . . 1 . . Hauler 2 | . . 2 . . Swarmer 4 | . . 4 . . Grunt 12 | . 2 7 . 3 Sentry 6 | . . 3 . 3 Best Kill Streak 6 | . 1 6 . 3 Combat Bots Only 5 | . 1 5 . 3 Max Kills in Single Turn 2 | . 1 1 . 2 Gunslinging 1 | . . . . 1 Exploded . | . . . . . Melee . | . . . . . Uniques/NPCs Destroyed . | . . . . . Combat | -11 -10 -9 -9 -9 -------- Run | Scr Mat Mat Sto Gar Damage Taken 1978 | . 216 925 . 837 Core 434 | . 31 204 . 199 Absorbed by Shields . | . . . . . Core Remaining (%) 93 | 100 87 . . . Volleys Fired 102 | . 19 64 1 18 Largest 2 | . 2 2 2 2 Hottest 91 | . 60 46 91 46 Shots Fired 162 | . 38 86 2 36 Gun 161 | . 38 86 1 36 Cannon 1 | . . . 1 . Launcher . | . . . . . Special . | . . . . . Kinetic 142 | . 19 86 1 36 Thermal 20 | . 19 . 1 . Explosive . | . . . . . Electromagnetic . | . . . . . Robot Hit Streak 17 | . 7 17 . 8 Robot Miss Streak 4 | . 3 4 . 2 Penetration Max . | . . . . . Secondary Targets 3 | . . 2 . 1 Max Gunslinging Chain 1 | . . 1 . 1 Shots Hit Robots 114 | . 22 71 . 21 Core Hits 49 | . 6 33 . 10 Critical Hits 1 | . . 1 . . Critical Kills . | . . . . . Critical Parts Destroyed 1 | . . 1 . . Melee Attacks . | . . . . . Impact . | . . . . . Slashing . | . . . . . Piercing . | . . . . . Sneak Attacks . | . . . . . Combat Hostiles . | . . . . . Follow-up Attacks . | . . . . . Damage Inflicted 1685 | . 312 1106 . 267 Guns 1685 | . 312 1106 . 267 Cannons . | . . . . . Explosions . | . . . . . Melee . | . . . . . Ramming . | . . . . . Kinetic 1522 | . 149 1106 . 267 Thermal 163 | . 163 . . . Explosive . | . . . . . Electromagnetic . | . . . . . Impact . | . . . . . Slashing . | . . . . . Piercing . | . . . . . Highest Corruption . | . . . . . Average Corruption . | . . . . . Corruption Purged . | . . . . . Overload Shots . | . . . . . Overflow Damage . | . . . . . Projectiles . | . . . . . Explosions . | . . . . . Melee . | . . . . . Knockbacks . | . . . . . Impact . | . . . . . Kinetic . | . . . . . Secondary . | . . . . . Self-Inflicted Damage 154 | . . . . 154 Shots 1 | . . . . 1 Rammed . | . . . . . Targets Rammed . | . . . . . Kicked . | . . . . . Crushed . | . . . . . Highest Temperature 60 | . 60 . 6 5 Average Temperature 25 | . 33 . 4 2 Received Heat Transfer 663 | . 120 327 . 216 Siege Activations . | . . . . . Robots Corrupted . | . . . . . Combat Hostiles . | . . . . . Parts Fried . | . . . . . Impact Corruptions . | . . . . . Robots Melted . | . . . . . Combat Hostiles . | . . . . . Parts Melted . | . . . . . Heat Transferred 375 | . 375 . . . Parts Sabotaged . | . . . . . Parts Stolen . | . . . . . Parts Stripped . | . . . . . Power Chain Reactions . | . . . . . Missiles Intercepted . | . . . . . Alert | -11 -10 -9 -9 -9 ------- Run | Scr Mat Mat Sto Gar Peak Influence 359 | . 90 293 84 359 Average Influence 164 | . 48 162 80 234 Maximum Alert Level 1 | . . 1 . 1 Low Security (%) 62 | 100 100 65 100 36 Level 1 37 | . . 34 . 63 Level 2 . | . . . . . Level 3 . | . . . . . Level 4 . | . . . . . Level 5 . | . . . . . High Security . | . . . . . Max Security . | . . . . . Squads Dispatched 4 | . 3 1 . . Investigation . | . . . . . Extermination . | . . . . . Reinforcement 4 | . 3 1 . . Assault . | . . . . . Garrison . | . . . . . Intercept . | . . . . . Construction Impeded . | . . . . . Haulers Reinforced . | . . . . . Stealth | -11 -10 -9 -9 -9 --------- Run | Scr Mat Mat Sto Gar Distress Signals 4 | . . 4 . . Communications Jammed . | . . . . . Distress Signals . | . . . . . Times Spotted 38 | . 7 18 . 13 Peak Tracking Total 7 | . 2 6 . 7 Tactical Retreats 1 | . . 1 . . Traps | -11 -10 -9 -9 -9 ------- Run | Scr Mat Mat Sto Gar Traps Triggered 1 | . . . . 1 Indirectly . | . . . . . Trap Hack Attempts . | . . . . . Triggered . | . . . . . Disarmed . | . . . . . Reprogrammed . | . . . . . Reused . | . . . . . Traps Extracted . | . . . . . Installed . | . . . . . Triggered . | . . . . . Machines | -11 -10 -9 -9 -9 ---------- Run | Scr Mat Mat Sto Gar Machines Disabled 4 | . . . 1 3 Max in Single Turn 2 | . . . 1 2 Garrison Relay 1 | . . . . 1 Phase Generator 1 | . . . . 1 Machines Sabotaged . | . . . . . Garrisons Compromised . | . . . . . Overloaded Fab Kills . | . . . . . Fab Network Shutdowns . | . . . . . Hacking | -11 -10 -9 -9 -9 --------- Run | Scr Mat Mat Sto Gar Machines Accessed 2 | . . 1 1 . Terminals 1 | . . 1 . . Fabricators . | . . . . . Repair Stations . | . . . . . Recycling Units . | . . . . . Scanalyzers . | . . . . . Garrison Access 1 | . . . 1 . Total Hacks 2 | . . 1 1 . Successful 2 | . . 1 1 . Failed . | . . . . . Catastrophic . | . . . . . Database Lockouts . | . . . . . Manual 1 | . . 1 . . Terminals 1 | . . 1 . . Fabricators . | . . . . . Repair Stations . | . . . . . Recycling Units . | . . . . . Scanalyzers . | . . . . . Garrison Access 1 | . . . 1 . Terminal Hacks . | . . . . . Fabricator Hacks . | . . . . . Repair Station Hacks . | . . . . . Recycling Unit Hacks . | . . . . . Scanalyzer . | . . . . . Garrison Access Hacks 1 | . . . 1 . Unlock Access 1 | . . . 1 . Unauthorized Hacks 1 | . . 1 . . Terminals 1 | . . 1 . . Track 1 | . . 1 . . Fabricators . | . . . . . Repair Stations . | . . . . . Recycling Units . | . . . . . Scanalyzers . | . . . . . Garrison Access . | . . . . . Data Cores Recovered . | . . . . . Used . | . . . . . Hacking Detections . | . . . . . Full Trace Events . | . . . . . Feedback Events . | . . . . . Feedback Blocked . | . . . . . Robot Schematics Acquired . | . . . . . Robots Built . | . . . . . Matter . | . . . . . Time . | . . . . . Total Robot Build Rating . | . . . . . Part Schematics Acquired . | . . . . . Parts Built . | . . . . . Matter . | . . . . . Time . | . . . . . Total Part Build Rating . | . . . . . Parts Repaired . | . . . . . Time . | . . . . . Parts Recycled . | . . . . . Recycled Matter . | . . . . . Retrieved Matter . | . . . . . Retrieved Components . | . . . . . Parts Scanalyzed . | . . . . . Part Schematics Acquired . | . . . . . Parts Damaged . | . . . . . Bothacking | -11 -10 -9 -9 -9 ------------ Run | Scr Mat Mat Sto Gar Used RIF Installer . | . . . . . Robots Hacked . | . . . . . Non-combat . | . . . . . Combat . | . . . . . Robot Hacks Applied . | . . . . . Relay Couplers Released 5 | . . . . 5 Machine Destruction 5 | . . . . 5 Robots Rewired . | . . . . . Allies Hacked . | . . . . . Hacks Repelled . | . . . . . Allies | -11 -10 -9 -9 -9 -------- Run | Scr Mat Mat Sto Gar Total Allies . | . . . . . Largest Group . | . . . . . Highest-Rated Group . | . . . . . Highest-Rated Ally . | . . . . . Total Orders . | . . . . . Ally Attacks . | . . . . . Total Damage . | . . . . . Kills . | . . . . . Allies Corrupted . | . . . . . Allies Melted . | . . . . . Intel | -11 -10 -9 -9 -9 ------- Run | Scr Mat Mat Sto Gar Robot Analysis Total . | . . . . . Derelict Logs Recovered . | . . . . . Drone Launches . | . . . . . Drone Recoveries . | . . . . . Exploration | -11 -10 -9 -9 -9 ------------- Run | Scr Mat Mat Sto Gar Turns Passed 1356 | 40 133 658 85 440 Spaces Moved 563 | 33 61 266 49 154 Core 15 | 9 . 5 . 1 Treads 209 | . . 118 49 42 Legs 339 | 24 61 143 . 111 Wheels . | . . . . . Hover . | . . . . . Flight . | . . . . . Fastest Speed 50 | 50 120 150 160 150 Average Speed 170 | 100 120 177 160 197 Slowest Speed 400 | 120 120 400 160 350 Overloaded Moves . | . . . . . Propulsion Burnouts . | . . . . . Robots Hopped . | . . . . . Cave-ins Triggered . | . . . . . Exploration Rate (%) 18 | 4 16 23 10 39 Regions Visited 4 Branch Regions 1 Pre-discovered Areas . | . . . . . Known Exits Taken 1 | . . . 1 . Unknown Exits Taken 3 | 1 1 1 . . Scrap Searched . | . . . . . Spaces Dug . | . . . . . Terrain Destroyed 85 | . . . . 85 Melee . | . . . . . Projectile . | . . . . . AOE 85 | . . . . 85 Actions | -11 -10 -9 -9 -9 --------- Run | Scr Mat Mat Sto Gar Total 791 | 37 82 362 53 257 Wait 96 | . . 19 . 77 Move 559 | 32 60 265 48 154 Hop . | . . . . . Pick Up 10 | . 1 4 1 4 Fast Attach 15 | 5 2 5 2 1 Attach 4 | . . 4 . . Detach 1 | . . . 1 . Swap 1 | . . 1 . . Drop 3 | . . . . 3 Fire 102 | . 19 64 1 18 Melee . | . . . . . Ram . | . . . . . Kick . | . . . . . Crush . | . . . . . Escape Stasis . | . . . . . Rewire . | . . . . . Trap . | . . . . . Miscellaneous . | . . . . . Route ------- -11/Scrapyard -10/Materials -9/Materials (discovered 2 exits: *Sto x2) -9/Storage -9/Garrison History --------- Turn | Location | Event 18 | -11/Scrapyard | Discovered new exit (range 16) 41 | -11/Scrapyard | Entered Materials 151 | -10/Materials | Discovered new exit (range 16) 174 | -10/Materials | Entered another Materials area 174 | -9/Materials | Evolved 2 slots: Utility x2 284 | -9/Materials | Discovered new exit (range 16) 325 | -9/Materials | Build established: Mutant 608 | -9/Materials | Lost 5 parts (1p1n3w) 608 | -9/Materials | Core integrity fell below 50% 820 | -9/Materials | Discovered new exit (range 5) 832 | -9/Materials | Entered Storage 915 | -9/Storage | Identified exit to Garrison 917 | -9/Storage | Entered Garrison 1060 | -9/Garrison | Triggered checkpoint 1112 | -9/Garrison | Garrison Relay disabled 1190 | -9/Garrison | Phase Generator disabled 1279 | -9/Garrison | Spotted B-75 Beast 1336 | -9/Garrison | Triggered checkpoint 1345 | -9/Garrison | Core integrity fell below 20% 1357 | -9/Garrison | Destroyed by G-34 Mercenary with Small Laser Last Messages --------------- 01127_ Acquired Relay Coupler [Sentry]. 01143_ Acquired Relay Coupler [Hunter]. 01152_ Dropped Relay Coupler [Sentry]. 01157_ Extracted 2 energy. 01161_ Extracted 21 matter. 01190_ Phase Generator explodes. 01190_ Machine disabled. 01192_ The unstable cave ceiling collapses. 01277_ Triggered Alarm Trap. 01277_ An alarm sounds. 01313_ Lgt. Treads destroyed. Garrison Door opened remotely. 01339_ Y-45 Defender destroyed. 01350_ Acquired 44 matter. Garrison Door opened remotely. 01352_ Shotgun destroyed. 01352_ Hvy. Ion Engine destroyed. Garrison Door opened remotely. 01355_ Aluminum Leg destroyed. 01356_ Imp. Assault Rifle destroyed. Map ----- +----------------------------------------------------+ | ?????????????????????????????????????????????????? | | ?????????????????????????????????????????????????? | | ?????????????????????????????????????????????????? | | ?????????????????????????????????????????????????? | | ?????????????????????????????????????????????????? | | ?????????????????????????????????????????????????? | | ?????????????????????????????????????????????????? | | ?????????????????????????????????????????????????? | | ?????????????????????????????????????????????????? | | ?????????????????????????????????????????????????? | | ???????????????? ???????????????????????????????? | | ???????????????# #?""""#??? #???????????????????? | | ??????????????# ?? #???????????????????? | | ?????????????? ?? ???????????????????? | | ?????????????? ?? ???????????????????? | | ??????????????# ## #? #???????????????????? | | ??????????????# ## ## ###?????????????????? | | ??????#?????#?" s#?????????????????? | | ?????#??????# " #?????????????????? | | ????????????# " s #?????????????????? | | #???????????? ??????????????????? | | ??#???????????# ## #? #???????????????????? | | ############### g## ## ##;#######??????????? | | # g #??????????? | | # BB !ss ????????????? | | # BB *!!@ #???????????????????? | | # #### ####### ### !%[## ##???????????????????? | | #?# #?????# #?# =%#? #????????????????????? | | #?# #?????# #?# ####?? #????????????????????? | | # #### #?????# ### #????? #????????????????????? | | # ##?# #?????# #?????? ????????????????????? | | # #### #???#?# #####??????##???????????????????? | | #??##?# #???????????????????????????????? | | # #### #?????# #???????????????????????????????? | | # ##?# ????#?# #???????????????????????????????? | | # #?#? ????#?# #???????????????????????????????? | | ????? #???????????????????????????????? | | # #####??????###???????????????????????????????? | | # #????????????????????????????????????????????? | | # ###??##??????????????????????????????????????? | | # #?#?#???? ? ?????????????????????????????????? | | # ##????#? ??? ???????????????????????????????? | | # ###?#?#? ????????????????????????????????????? | | # #?###?? ???????????????????????????????????? | | # ##?#??#? ? ??????????????????????????????????? | | # ##?###?####?#????????????????????????????????? | | # #?#??###?# ?#????????????????????????????????? | | # #????#??#??#?????????????????????????????????? | | ! #? ????? ##?#??????????????????????????????? | | #% ##?####??#?###???????????????????????????????? | +----------------------------------------------------+ Best States ------------- Heat Dissipation 28 Energy Generation 14 Energy Capacity 280 Matter Stores 300 Matter Capacity 300 Sight Range 16 Terrain Scan Range 16 Terrain Scan Density 60 Utility Shielding 33 Evasion (%) 50 Recoil Reduction 2 Item Schematics ----------------- None Robot Schematics ------------------ None Fabricated ------------ Nothing Alien Tech Used ----------------- None Achievements -------------- None Challenges ------------ None Game ------ Seed SupersonicTachyonDevice Manual? 0 Play Time 00:09:46 Cumulative 118.6 hours Start 2020.05.19 @ 18:46:55 End 2020.05.19 @ 18:55:15 Sessions 1 Manual Loads 0 Difficulty Rogue Special Mode None Game No. 214 Rogue 214 Adventurer 0 Explorer 0 Win Type - Total 0 Types 0/0/0/0/0/0/0 Lore% 24 Gallery% 47 Achievement% 30 Wizard Run 0 Options --------- ASCII 0 Keyboard 1 Movement Numpad Keybinds 0 Fullscreen 2 Font 18/SmallcapsGlow Map View 76x50 Tactical HUD 1 Map Filters NONE Filters NONE Steam 1 RUN: 34b7dc30-1067-4c82-b66f-8ef6f59dc514